[Event "BL 2024-25"]
[Site "Austria"]
[Date "2024.10.10"]
[Round "2.8"]
[White "Andreikin, Dmitry"]
[Black "Karthik Venkataraman"]
[Result "1/2-1/2"]
[ECO "A13"]
[WhiteElo "2729"]
[BlackElo "2581"]
[Annotator "TA"]
[PlyCount "107"]
[EventDate "2024.08.28"]
[EventType "team-tourn"]
[EventCountry "AUT"]
[SourceTitle "playchess.com"]
[Source "ChessBase"]
[SourceQuality "1"]
[WhiteTeam "Linz"]
[BlackTeam "Feffernitz"]
[TimeControl "40/5400+30:1800+30"]

{[%evp 9,107,8,5,2,14,18,30,11,29,26,45,30,21,0,0,0,0,0,0,-8,0,0,0,0,0,0,0,0,14,15,9,9,11,11,10,6,12,12,11,12,14,20,14,21,12,0,0,0,0,1,2,8,1,1,8,9,8,8,8,2,8,0,0,0,0,0,0,0,0,0,0,0,0,0,0,0,0,0,0,0,0,0,0,0,0,0,0,0,0,0,0,0,0,0,0,0,0,0,0,0]} 1. Nf3 {[%emt 0:00:09]} d5 {[%emt 0:00:42]} 2. e3 {[%emt 0:00:15]} Nf6 {[%emt 0:00:20]} 3. c4 {[%emt 0:00:11]} e6 {[%emt 0:00:05]} 4. b3 {[%emt 0:00:12]} Bd6 {[%emt 0:00:16]} 5. Bb2 {[%emt 0:00:11]} O-O {[%emt 0:00:09]} 6. Nc3 {[%emt 0:00:59]} Nc6 {[%emt 0:00:15]} 7. Rc1 {[%emt 0:10:06]} a6 {[%emt 0:04:26]} 8. d4 {[%emt 0:06:03] White has an edge.} b6 {[%emt 0:12:18]} 9. Bd3 {[%emt 0:01:22]} dxc4 {[%emt 0:02:47]} 10. bxc4 {[%emt 0:00:08]} e5 {[%emt 0:00:59]} 11. c5 {[%emt 0:08:15] The position is equal.} bxc5 {[%emt 0:01:19]} 12. dxc5 {[%emt 0:00:17]} Bxc5 {[%emt 0:05:58]} 13. O-O {[%emt 0:03:05]} Bd6 {[%emt 0:01:29]} 14. Ne4 {[%emt 0:02:43]} Rb8 {[%emt 0:03:55]} 15. Rxc6 {[%emt 0:05:58] [#] And now Nxf6+ would win.} Rxb2 {[%emt 0:00:54]} 16. Nxd6 {[%emt 0:00:37]} cxd6 {[%emt 0:00:06]} 17. Bxa6 {[%emt 0:00:12]} Bxa6 {[%emt 0:32:09]} 18. Rxa6 {[%emt 0:00:13]} Qb8 {[%emt 0:03:09]} 19. Qxd6 {[%emt 0:07:43]} Qxd6 {[%emt 0:00:06]} 20. Rxd6 {[%emt 0:00:06]} Ne4 {[%emt 0:04:15]} 21. Rc6 {[%emt 0:00:10]} f6 {[%emt 0:01:31]} 22. Rc4 {[%emt 0:00:16]} Nd6 {[%emt 0:00:06]} 23. Ra4 {[%emt 0:00:45]} Nb5 {[%emt 0:00:57]} 24. h3 {[%emt 0:08:44]} Nc3 {[%emt 0:01:32]} 25. Rc4 {[%emt 0:01:14]} Nxa2 {[%emt 0:01:54]} 26. g4 {[%emt 0:10:29]} Rfb8 {[%emt 0:01:38]} 27. Nh4 {[%emt 0:05:20]} R2b4 {[%emt 0:00:18]} 28. Rc2 {[%emt 0:08:24]} Rb2 {[%emt 0:01:59]} 29. Rc5 {[%emt 0:01:46]} R2b5 {[%emt 0:00:15]} 30. Rxb5 {[%emt 0:00:34]} Rxb5 $11 {[%emt 0:00:02][%mdl 4096] Endgame. KRN-KRN} 31. Ra1 {[%emt 0:05:02]} Rb2 {[%emt 0:03:51]} 32. Nf5 {[%emt 0:00:10]} g6 {[%emt 0:00:56]} 33. Nd6 {[%emt 0:00:09]} Kf8 {[%emt 0:03:03]} 34. Ne4 {[%emt 0:01:00]} Ke7 {[%emt 0:00:43]} 35. g5 {[%emt 0:00:40]} fxg5 {[%emt 0:00:05]} 36. Nxg5 {[%emt 0:00:32]} h6 {[%emt 0:00:06]} 37. Ne4 {[%emt 0:00:30]} Rb4 {[%emt 0:06:31]} 38. Nc5 {[%emt 0:01:59]} Rb5 {[%emt 0:00:01]} 39. Ne4 {[%emt 0:01:47]} Rb4 {[%emt 0:00:18]} 40. Nd2 {[%emt 0:02:58]} Ra4 {[%emt 0:03:06]} 41. Kg2 {[%emt 0:31:13]} Nc3 {[%emt 0:33:25]} 42. Rc1 {[%emt 0:01:09]} Ne4 {[%emt 0:00:50]} 43. Nxe4 {[%emt 0:02:28]} Rxe4 {[%emt 0:00:09] KR-KR} 44. Rc6 {[%emt 0:00:30]} Kf7 {[%emt 0:00:05]} 45. Kg3 {[%emt 0:00:04]} Ra4 {[%emt 0:00:10]} 46. Kf3 {[%emt 0:02:09]} Rh4 {[%emt 0:00:55]} 47. Kg3 {[%emt 0:00:09]} Ra4 {[%emt 0:00:04]} 48. h4 {[%emt 0:00:29]} h5 {[%emt 0:00:21]} 49. f3 {[%emt 0:00:43]} Ra3 {[%emt 0:00:12]} 50. e4 {[%emt 0:00:24]} Rb3 {[%emt 0:00:08]} 51. Rc5 {[%emt 0:00:21]} Kf6 {[%emt 0:00:06]} 52. Rc6+ {[%emt 0:00:04]} Kf7 {[%emt 0:00:03]} 53. Rc7+ {[%emt 0:00:03]} Kf6 {[%emt 0:00:04]} 54. Rc6+ {[%emt 0:00:04] Weighted Error Value: White=0.01 (flawless) /Black=0.03 (flawless) .  Inaccurate:     	White=1     	---        OK:         	White=24    	Black=25     Best:        	---       	Black=1} 1/2-1/2

[Event "BL 2024-25"]
[Site "Austria"]
[Date "2024.10.10"]
[Round "2.8"]
[White "Andreikin, Dmitry"]
[Black "Karthik Venkataraman"]
[Result "*"]
[ECO "A13"]
[WhiteElo "2729"]
[BlackElo "2581"]
[Annotator "TA"]
[PlyCount "40"]
[EventDate "2024.08.28"]
[EventType "team-tourn"]
[EventCountry "AUT"]
[SourceTitle "playchess.com"]
[Source "ChessBase"]
[SourceQuality "1"]
[WhiteTeam "Linz"]
[BlackTeam "Feffernitz"]
[TimeControl "40/5400+30:1800+30"]

{[%evp 9,40,3,16,4,22,5,21,7,29,31,27,18,28,0,0,0,0,0,0,0,0,0,0,0,18,0,0,0,8,-731,0,-1556,1542]} 1. Nf3 {[%emt 0:00:09]} d5 {[%emt 0:00:42]} 2. e3 {[%emt 0:00:15]} Nf6 {[%emt 0:00:20]} 3. c4 {[%emt 0:00:11]} e6 {[%emt 0:00:05]} 4. b3 {[%emt 0:00:12]} Bd6 {[%emt 0:00:16]} 5. Bb2 {[%emt 0:00:11]} O-O {[%emt 0:00:09]} 6. Nc3 {[%emt 0:00:59]} Nc6 {[%emt 0:00:15]} 7. Rc1 {[%emt 0:10:06]} a6 {[%emt 0:04:26]} 8. d4 {[%emt 0:06:03] The position is equal.} b6 {[%emt 0:12:18]} 9. Bd3 {[%emt 0:01:22]} dxc4 {[%emt 0:02:47]} 10. bxc4 {[%emt 0:00:08]} e5 {[%emt 0:00:59]} 11. c5 {[%emt 0:08:15]} bxc5 {[%emt 0:01:19]} 12. dxc5 {[%emt 0:00:17]} Bxc5 {[%emt 0:05:58]} 13. O-O {[%emt 0:03:05] Threatens to win with Ne4.} Bd6 {[%emt 0:01:29]} 14. Ne4 {[%emt 0:02:43]} Rb8 {[%emt 0:03:55]} 15. Rxc6 {[%emt 0:05:58] Nxf6+ would now be deadly.} Rxb2 {[%emt 0:00:54]} 16. Nxd6 {[%emt 0:00:37]} cxd6 {[%emt 0:00:06]} 17. Bxa6 {[%emt 0:00:12]} (17. Rxd6 $5 Qe7 18. Bc4 $11) 17... Bxa6 {[%emt 0:32:09]} 18. Rxa6 {[%emt 0:00:13]} Qb8 {[%emt 0:03:09] [#]} 19. Qd2 $2 {[%emt 0:59:04][%mdl 8192]} d5 $2 ({Black should play} 19... Rxd2 $19 20. Nxd2 Qb4) 20. Qxd5 $2 {[%emt 0:00:00][%mdl 8192] [#]} Qd6 $4 {[%emt 0:00:36][%mdl 8192] Weighted Error Value: White=0.97/Black=0.42.  Loses game:     	White=2     	---        Missed win:     	---       	Black=1      OK:         	White=6     	Black=4      Best:        	---       	Black=2} *

[Event "BL 2024-25"]
[Site "Austria"]
[Date "2024.10.10"]
[Round "2.9"]
[White "Ghosh, Diptayan"]
[Black "Vitiugov, Nikita"]
[Result "1/2-1/2"]
[ECO "E48"]
[WhiteElo "2566"]
[BlackElo "2667"]
[Annotator "RC"]
[PlyCount "43"]
[EventDate "2024.08.28"]
[EventType "team-tourn"]
[EventCountry "AUT"]
[SourceTitle "playchess.com"]
[Source "ChessBase"]
[SourceQuality "1"]
[WhiteTeam "Feffernitz"]
[BlackTeam "Linz"]
[TimeControl "40/5400+30:1800+30"]

1. d4 {[%emt 0:00:29]} Nf6 {[%emt 0:00:12]} 2. c4 {[%emt 0:00:10]} e6 {[%emt 0:00:07]} 3. Nc3 {[%emt 0:00:17]} Bb4 {[%emt 0:00:23]} 4. e3 {[%emt 0:00:27]} O-O {[%emt 0:00:22]} 5. Bd3 {[%emt 0:00:13]} d5 {[%emt 0:00:33]} 6. cxd5 {[%emt 0:01:06]} exd5 {[%emt 0:00:07]} 7. a3 {[%emt 0:00:05]} Bd6 {[%emt 0:01:03]} 8. Qc2 {[%emt 0:00:07]} Re8 {[%emt 0:07:00]} 9. Nb5 {[%emt 0:02:58]} b6 {[%emt 0:00:29]} 10. Nxd6 {[%emt 0:02:14]} Qxd6 {[%emt 0:01:28]} 11. Ne2 {[%emt 0:01:08]} Ba6 {[%emt 0:05:15]} 12. O-O {[%emt 0:08:27]} Bxd3 {[%emt 0:03:01]} 13. Qxd3 {[%emt 0:00:20]} Nbd7 {[%emt 0:01:10]} 14. b3 {[%emt 0:03:44]} Nf8 {[%emt 0:02:02]} 15. a4 {[%emt 0:05:07]} Ng6 {[%emt 0:06:10]} 16. Ba3 {[%emt 0:01:26]} Qd7 {[%emt 0:00:22]} 17. Rae1 {[%emt 0:02:38]} Rac8 {[%emt 0:06:37]} 18. Ng3 {[%emt 0:17:52]} Ne4 {[%emt 0:07:56]} 19. Ne2 {[%emt 0:05:10]} Nf6 {[%emt 0:02:23]} 20. Ng3 {[%emt 0:00:51]} Ne4 {[%emt 0:00:27]} 21. Ne2 {[%emt 0:00:23]} Nf6 {[%emt 0:06:44]} 22. Ng3 1/2-1/2

[Event "BL 2024-25"]
[Site "Austria"]
[Date "2024.10.10"]
[Round "2.10"]
[White "Rodshtein, Maxim"]
[Black "Kunin, Vitaly"]
[Result "1-0"]
[ECO "A07"]
[WhiteElo "2613"]
[BlackElo "2528"]
[Annotator "RC"]
[PlyCount "71"]
[EventDate "2024.08.28"]
[EventType "team-tourn"]
[EventCountry "AUT"]
[SourceTitle "playchess.com"]
[Source "ChessBase"]
[SourceQuality "1"]
[WhiteTeam "Linz"]
[BlackTeam "Feffernitz"]
[TimeControl "40/5400+30:1800+30"]

1. Nf3 {[%emt 0:00:15]} d5 {[%emt 0:00:48]} 2. g3 {[%emt 0:00:17]} Bg4 {[%emt 0:02:31]} 3. Bg2 {[%emt 0:00:11]} Nd7 {[%emt 0:00:24]} 4. h3 {[%emt 0:04:00]} Bxf3 {[%emt 0:01:14]} 5. Bxf3 {[%emt 0:00:06]} c6 {[%emt 0:00:15]} 6. d3 {[%emt 0:00:29]} e5 {[%emt 0:00:59]} 7. e4 {[%emt 0:04:08]} dxe4 {[%emt 0:00:45]} 8. dxe4 {[%emt 0:00:14]} Bc5 {[%emt 0:00:23]} 9. Nd2 {[%emt 0:02:31]} Ngf6 {[%emt 0:02:26]} 10. O-O {[%emt 0:02:19]} Qc7 {[%emt 0:05:52]} 11. a4 {[%emt 0:07:09]} O-O {[%emt 0:06:25]} 12. Qe2 {[%emt 0:02:44]} Rfd8 {[%emt 0:05:18]} 13. Nb3 {[%emt 0:05:29]} Be7 {[%emt 0:00:32]} 14. Be3 {[%emt 0:00:25]} Nf8 {[%emt 0:00:29]} 15. c3 {[%emt 0:23:21]} Ne6 {[%emt 0:02:26]} 16. h4 {[%emt 0:05:43]} Nd7 {[%emt 0:05:56]} 17. Bg4 {[%emt 0:00:42]} Nec5 {[%emt 0:01:45]} 18. Nxc5 {[%emt 0:00:20]} Nxc5 {[%emt 0:07:48]} 19. Qc4 {[%emt 0:00:17]} b6 {[%emt 0:02:09]} 20. Rfd1 {[%emt 0:09:53]} Rxd1+ {[%emt 0:01:43]} 21. Rxd1 {[%emt 0:00:12]} Rd8 {[%emt 0:00:09]} 22. Rxd8+ {[%emt 0:08:16]} Qxd8 {[%emt 0:00:09]} 23. b4 {[%emt 0:06:09]} Qd3 {[%emt 0:01:07]} 24. Qxd3 {[%emt 0:00:12]} Nxd3 {[%emt 0:00:08]} 25. Bd7 {[%emt 0:04:24]} c5 {[%emt 0:03:36]} 26. Bb5 {[%emt 0:00:09]} Ne1 {[%emt 0:10:54]} 27. bxc5 {[%emt 0:00:56]} Bxc5 {[%emt 0:10:35]} 28. Bxc5 {[%emt 0:00:14]} bxc5 {[%emt 0:00:06]} 29. Kf1 {[%emt 0:00:19]} Nc2 {[%emt 0:00:16]} 30. Ke2 {[%emt 0:02:32]} Na3 {[%emt 0:04:49]} 31. Ba6 {[%emt 0:00:28]} f5 {[%emt 0:00:36]} 32. Kd2 {[%emt 0:04:32]} fxe4 {[%emt 0:03:24]} 33. Kc1 {[%emt 0:00:04]} e3 {[%emt 0:01:42]} 34. fxe3 {[%emt 0:00:44]} Kf7 {[%emt 0:00:50]} 35. Kb2 {[%emt 0:00:14]} Ke6 {[%emt 0:00:05]} 36. e4 {[%emt 0:00:14]} 1-0

[Event "BL 2024-25"]
[Site "Austria"]
[Date "2024.10.10"]
[Round "2.12"]
[White "Bacrot, Etienne"]
[Black "Brunello, Sabino"]
[Result "1/2-1/2"]
[ECO "C48"]
[WhiteElo "2658"]
[BlackElo "2514"]
[Annotator "RC"]
[PlyCount "105"]
[EventDate "2024.08.28"]
[EventType "team-tourn"]
[EventCountry "AUT"]
[SourceTitle "playchess.com"]
[Source "ChessBase"]
[SourceQuality "1"]
[WhiteTeam "Linz"]
[BlackTeam "Feffernitz"]
[TimeControl "40/5400+30:1800+30"]

1. e4 e5 {[%emt 1:31:00]} 2. Nf3 Nf6 {[%emt 0:00:30]} 3. Nc3 Nc6 {[%emt 0:00:30]} 4. Bb5 Nd4 {[%emt 0:00:30]} 5. O-O c6 {[%emt 0:00:30]} 6. Bc4 b5 {[%emt 0:00:30]} 7. Bb3 Nxb3 {[%emt 0:00:30]} 8. axb3 d6 {[%emt 0:00:30]} 9. d4 Qc7 {[%emt 0:00:30]} 10. Bg5 Be7 {[%emt 0:00:30]} 11. b4 Bd7 {[%emt 0:00:30]} 12. Qd3 O-O {[%emt 0:00:30]} 13. Rfd1 Rfd8 {[%emt 0:00:30]} 14. d5 c5 {[%emt 0:00:30]} 15. Nxb5 Bxb5 {[%emt 0:00:30]} 16. Qxb5 Nxe4 {[%emt 0:00:30]} 17. Bxe7 Qxe7 {[%emt 0:00:30]} 18. bxc5 Nxc5 {[%emt 0:00:30]} 19. b4 Ne4 {[%emt 0:00:30]} 20. Qc4 f5 {[%emt 0:00:30]} 21. Ra6 Rd7 {[%emt 0:00:30]} 22. Nd2 Nf6 {[%emt 0:00:30]} 23. Rc6 g6 {[%emt 0:00:30]} 24. Qb3 e4 {[%emt 0:00:30]} 25. Nc4 f4 {[%emt 0:00:30]} 26. b5 Rb8 {[%emt 0:00:30]} 27. b6 axb6 {[%emt 0:00:30]} 28. Rxb6 Rxb6 {[%emt 0:00:30]} 29. Qxb6 Rc7 {[%emt 0:00:30]} 30. Nxd6 Rxc2 {[%emt 0:00:30]} 31. Qb3 Re2 {[%emt 0:00:30]} 32. Kf1 f3 {[%emt 0:00:30]} 33. gxf3 exf3 {[%emt 0:00:30]} 34. Qxf3 Re5 {[%emt 0:00:30]} 35. Nc4 Rf5 {[%emt 0:00:30]} 36. d6 Qe6 {[%emt 0:00:30]} 37. Qa8+ Kg7 {[%emt 0:00:30]} 38. Qa7+ Nd7 {[%emt 0:00:30]} 39. Qd4+ Qf6 {[%emt 0:00:30]} 40. Qe3 Rf4 {[%emt 0:00:30]} 41. Nb6 Nxb6 {[%emt 0:30:30]} 42. Qxb6 Qe6 {[%emt 0:00:30]} 43. Qc6 Qh3+ {[%emt 0:00:30]} 44. Qg2 Qb3 {[%emt 0:00:30]} 45. Qd5 Qh3+ {[%emt 0:00:30]} 46. Kg1 Qg4+ {[%emt 0:00:30]} 47. Kh1 Rxf2 {[%emt 0:00:30]} 48. d7 Qe2 {[%emt 0:00:30]} 49. Qd4+ Kh6 {[%emt 0:00:30]} 50. Qh4+ Kg7 {[%emt 0:00:30]} 51. Qd4+ Kh6 {[%emt 0:00:30]} 52. Qh4+ Kg7 {[%emt 0:00:30]} 53. Qd4+ 1/2-1/2

[Event "BL 2024-25"]
[Site "Austria"]
[Date "2024.10.10"]
[Round "2.13"]
[White "Pechac, Jergus"]
[Black "Unuk, Laura"]
[Result "1/2-1/2"]
[ECO "B10"]
[WhiteElo "2582"]
[BlackElo "2304"]
[Annotator "RC"]
[PlyCount "83"]
[EventDate "2024.08.28"]
[EventType "team-tourn"]
[EventCountry "AUT"]
[SourceTitle "playchess.com"]
[Source "ChessBase"]
[SourceQuality "1"]
[WhiteTeam "Mistelbach"]
[BlackTeam "Pamhagen"]
[TimeControl "40/5400+30:1800+30"]

1. e4 {[%emt 0:00:05]} c6 {[%emt 0:00:31]} 2. Nf3 {[%emt 0:02:45]} d5 {[%emt 0:00:20]} 3. e5 {[%emt 0:01:25]} Bg4 {[%emt 0:02:30]} 4. Be2 {[%emt 0:00:24]} e6 {[%emt 0:00:11]} 5. O-O {[%emt 0:00:11]} Ne7 {[%emt 0:04:55]} 6. d4 {[%emt 0:00:58]} Nf5 {[%emt 0:00:23]} 7. c3 {[%emt 0:01:49]} Bxf3 {[%emt 0:17:13]} 8. Bxf3 {[%emt 0:00:08]} c5 {[%emt 0:00:30]} 9. dxc5 {[%emt 0:01:44]} Nc6 {[%emt 0:05:46]} 10. b4 {[%emt 0:05:24]} a5 {[%emt 0:04:00]} 11. c4 {[%emt 0:29:30]} dxc4 {[%emt 0:23:32]} 12. b5 {[%emt 0:00:38]} Nxe5 {[%emt 0:00:27]} 13. Bxb7 {[%emt 0:02:19]} Bxc5 {[%emt 0:02:27]} 14. Qe2 {[%emt 0:16:46]} Bd4 {[%emt 0:02:49]} 15. Rd1 {[%emt 0:04:36]} Bxa1 {[%emt 0:17:05]} 16. Rxd8+ {[%emt 0:07:31]} Rxd8 {[%emt 0:00:04]} 17. Ba3 {[%emt 0:00:47]} Nd4 {[%emt 0:14:34]} 18. Qh5 {[%emt 0:15:51]} Nxb5 {[%emt 0:00:57]} 19. Bc5 {[%emt 0:00:08]} Nd6 {[%emt 0:00:38]} 20. Ba6 {[%emt 0:03:34]} O-O {[%emt 0:00:03]} 21. Na3 {[%emt 0:00:43]} Rfe8 {[%emt 0:01:28]} 22. h3 {[%emt 0:02:30]} Nd3 {[%emt 0:00:29]} 23. Bb6 {[%emt 0:00:21]} Ra8 {[%emt 0:00:22]} 24. Qxa5 {[%emt 0:00:31]} c3 {[%emt 0:00:36]} 25. Nc2 {[%emt 0:01:12]} Bb2 {[%emt 0:00:01]} 26. Bd4 {[%emt 0:00:11]} Nf4 {[%emt 0:00:57]} 27. Bxg7 {[%emt 0:01:02]} Kxg7 {[%emt 0:00:18]} 28. Qe5+ {[%emt 0:00:06]} Kg8 {[%emt 0:00:48]} 29. Qxd6 {[%emt 0:00:06]} Nd5 {[%emt 0:00:29]} 30. Bd3 {[%emt 0:00:41]} Rxa2 {[%emt 0:00:24]} 31. Qg3+ {[%emt 0:01:21]} Kf8 {[%emt 0:00:03]} 32. Qd6+ {[%emt 0:00:20]} Kg8 {[%emt 0:00:18]} 33. f4 {[%emt 0:00:31]} Raa8 {[%emt 0:01:15]} 34. f5 {[%emt 0:00:15]} Rad8 {[%emt 0:00:32]} 35. Qg3+ {[%emt 0:00:26]} Kf8 {[%emt 0:00:22]} 36. Qg5 {[%emt 0:00:59]} exf5 {[%emt 0:00:11]} 37. Qh6+ {[%emt 0:00:04]} Ke7 {[%emt 0:00:48]} 38. Nd4 {[%emt 0:00:04]} f6 {[%emt 0:00:39]} 39. Nxf5+ {[%emt 0:01:32]} Kd7 {[%emt 0:00:18]} 40. Bb5+ {[%emt 0:00:29]} Kc7 {[%emt 0:00:39]} 41. Ba4 {[%emt 0:06:59]} Ba3 {[%emt 0:11:08]} 42. Kh2 {[%emt 0:03:23]} 1/2-1/2

[Event "BL 2024-25"]
[Site "Austria"]
[Date "2024.10.10"]
[Round "2.14"]
[White "Vitouch, Anatol"]
[Black "Kraus, Tomas"]
[Result "1/2-1/2"]
[ECO "E16"]
[WhiteElo "2287"]
[BlackElo "2461"]
[Annotator "RC"]
[PlyCount "61"]
[EventDate "2024.08.28"]
[EventType "team-tourn"]
[EventCountry "AUT"]
[SourceTitle "playchess.com"]
[Source "ChessBase"]
[SourceQuality "1"]
[WhiteTeam "Pamhagen"]
[BlackTeam "Mistelbach"]
[TimeControl "40/5400+30:1800+30"]

1. Nf3 {[%emt 0:00:03]} d5 {[%emt 0:00:34]} 2. d4 {[%emt 0:00:04]} Nf6 {[%emt 0:02:17]} 3. c4 {[%emt 0:00:08]} e6 {[%emt 0:00:40]} 4. g3 {[%emt 0:00:19]} Bb4+ {[%emt 0:03:25]} 5. Nbd2 {[%emt 0:00:06]} O-O {[%emt 0:01:18]} 6. Bg2 {[%emt 0:00:11]} b6 {[%emt 0:01:33]} 7. O-O {[%emt 0:00:55]} Bb7 {[%emt 0:02:01]} 8. Ne5 {[%emt 0:00:57]} Qc8 {[%emt 0:05:40]} 9. cxd5 {[%emt 0:12:31]} Bxd5 {[%emt 0:01:42]} 10. e4 {[%emt 0:02:23]} Bb7 {[%emt 0:00:28]} 11. Qe2 {[%emt 0:15:41]} Nbd7 {[%emt 0:25:41]} 12. Nec4 {[%emt 0:03:51]} a5 {[%emt 0:06:23]} 13. a3 {[%emt 0:06:47]} Be7 {[%emt 0:00:10]} 14. b3 {[%emt 0:03:18]} Ra7 {[%emt 0:07:59]} 15. Re1 {[%emt 0:09:06]} Qa8 {[%emt 0:01:02]} 16. Nb1 {[%emt 0:00:41]} b5 {[%emt 0:03:58]} 17. Ncd2 {[%emt 0:00:31]} b4 {[%emt 0:03:00]} 18. Bb2 {[%emt 0:16:17]} c5 {[%emt 0:07:29]} 19. Nc4 {[%emt 0:01:41]} cxd4 {[%emt 0:02:36]} 20. Bxd4 {[%emt 0:00:11]} Ra6 {[%emt 0:00:33]} 21. a4 {[%emt 0:02:28]} Bc5 {[%emt 0:05:36]} 22. Bb2 {[%emt 0:01:27]} Qa7 {[%emt 0:02:42]} 23. Nbd2 {[%emt 0:01:44]} Rd8 {[%emt 0:02:45]} 24. Rad1 {[%emt 0:01:20]} h6 {[%emt 0:00:32]} 25. h3 {[%emt 0:01:51]} Qa8 {[%emt 0:02:57]} 26. Ne3 {[%emt 0:05:15]} Be7 {[%emt 0:01:00]} 27. e5 {[%emt 0:02:02]} Nh7 {[%emt 0:02:01]} 28. Bxb7 {[%emt 0:03:27]} Qxb7 {[%emt 0:00:01]} 29. Nf3 {[%emt 0:02:45]} Nc5 {[%emt 0:01:52]} 30. Rxd8+ {[%emt 0:00:09]} Bxd8 {[%emt 0:00:00]} 31. Nd4 {[%emt 0:01:36]} 1/2-1/2

[Event "BL 2024-25"]
[Site "Austria"]
[Date "2024.10.10"]
[Round "2.15"]
[White "Stalmach, Richard"]
[Black "Gschiel, Alexander"]
[Result "1-0"]
[ECO "D38"]
[WhiteElo "2433"]
[BlackElo "2326"]
[Annotator "RC"]
[PlyCount "79"]
[EventDate "2024.08.28"]
[EventType "team-tourn"]
[EventCountry "AUT"]
[SourceTitle "playchess.com"]
[Source "ChessBase"]
[SourceQuality "1"]
[WhiteTeam "Mistelbach"]
[BlackTeam "Pamhagen"]
[TimeControl "40/5400+30:1800+30"]

1. d4 {[%emt 0:00:05]} d5 {[%emt 0:00:09]} 2. c4 {[%emt 0:00:07]} e6 {[%emt 0:00:10]} 3. Nc3 {[%emt 0:00:25]} Nf6 {[%emt 0:00:30]} 4. Nf3 {[%emt 0:00:36]} Bb4 {[%emt 0:00:37]} 5. Qa4+ {[%emt 0:03:37]} Nc6 {[%emt 0:00:08]} 6. e3 {[%emt 0:00:05]} O-O {[%emt 0:00:32]} 7. Qc2 {[%emt 0:00:09]} Re8 {[%emt 0:00:58]} 8. a3 {[%emt 0:03:05]} Bf8 {[%emt 0:01:39]} 9. Bd3 {[%emt 0:09:09]} b6 {[%emt 0:12:55]} 10. O-O {[%emt 0:05:13]} Bb7 {[%emt 0:03:13]} 11. b4 {[%emt 0:01:49]} h6 {[%emt 0:04:52]} 12. Bb2 {[%emt 0:03:42]} e5 {[%emt 0:16:12]} 13. cxd5 {[%emt 0:04:17]} Nxd5 {[%emt 0:04:18]} 14. Nxd5 {[%emt 0:00:27]} Qxd5 {[%emt 0:00:33]} 15. Bh7+ {[%emt 0:03:31]} Kh8 {[%emt 0:00:07]} 16. Be4 {[%emt 0:00:58]} Qd7 {[%emt 0:05:02]} 17. Nxe5 {[%emt 0:05:14]} Nxe5 {[%emt 0:00:48]} 18. Bxb7 {[%emt 0:00:06]} Rab8 {[%emt 0:01:58]} 19. Be4 {[%emt 0:20:50]} Nc4 {[%emt 0:00:09]} 20. b5 {[%emt 0:00:27]} Rxe4 {[%emt 0:17:29]} 21. Qxe4 {[%emt 0:02:41]} Nd2 {[%emt 0:00:16]} 22. Qd3 {[%emt 0:00:15]} Nxf1 {[%emt 0:00:08]} 23. Rxf1 {[%emt 0:00:04]} f5 {[%emt 0:03:25]} 24. f3 {[%emt 0:01:37]} Rd8 {[%emt 0:01:20]} 25. e4 {[%emt 0:01:33]} fxe4 {[%emt 0:05:19]} 26. fxe4 {[%emt 0:00:06]} Bc5 {[%emt 0:00:20]} 27. Kh1 {[%emt 0:00:36]} Qg4 {[%emt 0:01:18]} 28. h3 {[%emt 0:03:09]} Qg6 {[%emt 0:03:10]} 29. Rf5 {[%emt 0:07:11]} Bd6 {[%emt 0:05:59]} 30. Qf3 {[%emt 0:01:53]} Qg3 {[%emt 0:02:34]} 31. e5 {[%emt 0:03:00]} Qe1+ {[%emt 0:01:19]} 32. Kh2 {[%emt 0:02:30]} Be7 {[%emt 0:00:10]} 33. Rf7 {[%emt 0:00:36]} Bg5 {[%emt 0:02:15]} 34. d5 {[%emt 0:03:43]} Be3 {[%emt 0:00:49]} 35. Qf1 {[%emt 0:01:21]} Qd2 {[%emt 0:02:02]} 36. Ba1 {[%emt 0:04:06]} Qxd5 {[%emt 0:00:49]} 37. e6 {[%emt 0:01:41]} Bd4 {[%emt 0:02:37]} 38. e7 {[%emt 0:01:33]} Rg8 {[%emt 0:01:43]} 39. Rf8 {[%emt 0:00:15]} Be5+ {[%emt 0:01:27]} 40. Kh1 {[%emt 0:00:11]} 1-0

[Event "BL 2024-25"]
[Site "Austria"]
[Date "2024.10.10"]
[Round "2.16"]
[White "Fleischhacker, Christian"]
[Black "Haba, Petr"]
[Result "0-1"]
[ECO "B47"]
[WhiteElo "1873"]
[BlackElo "2422"]
[Annotator "RC"]
[PlyCount "26"]
[EventDate "2024.08.28"]
[EventType "team-tourn"]
[EventCountry "AUT"]
[SourceTitle "playchess.com"]
[Source "ChessBase"]
[SourceQuality "1"]
[WhiteTeam "Pamhagen"]
[BlackTeam "Mistelbach"]
[TimeControl "40/5400+30:1800+30"]

1. e4 {[%emt 0:00:15]} c5 {[%emt 0:00:15]} 2. Nf3 {[%emt 0:00:23]} e6 {[%emt 0:00:11]} 3. d4 {[%emt 0:00:22]} cxd4 {[%emt 0:00:06]} 4. Nxd4 {[%emt 0:00:08]} Nc6 {[%emt 0:00:23]} 5. Nc3 {[%emt 0:01:24]} Qc7 {[%emt 0:00:20]} 6. Be2 {[%emt 0:04:54]} a6 {[%emt 0:00:17]} 7. O-O {[%emt 0:01:19]} Nf6 {[%emt 0:00:19]} 8. Bg5 {[%emt 0:03:25]} Bb4 {[%emt 0:06:11]} 9. Nxc6 {[%emt 0:11:14]} bxc6 {[%emt 0:00:12]} 10. Bxf6 {[%emt 0:02:34]} gxf6 {[%emt 0:00:10]} 11. Qd4 {[%emt 0:00:37]} Be7 {[%emt 0:06:32]} 12. Rad1 {[%emt 0:04:11]} Rb8 {[%emt 0:03:29]} 13. Na4 {[%emt 0:05:34]} Rb4 {[%emt 0:02:08]} 0-1